Cogmind - Beta 14 @@@ ROGUE MODE // 2024.08.08 @ 03:35:12 Player: Byrnorthil Result: Self-destructed Performance ------------- Evolutions (1) 500 Regions Visited (2) 400 Robots Destroyed (29) 145 Value Destroyed (738) 738 Prototype IDs (0) 0 Alien Tech Used (0) 0 Bonus (-169) -169 TOTAL SCORE: 1614 Bonus ------- Friendly Fire -169 Cogmind --------- Core Integrity 306/400 Matter 0/300 Energy 100/100 System Corruption 0% Temperature Cool (42) Movement Core (1500) Ox29 Location -9/Materials Parts ------- > --- POWER (1) -------- (None) > --- PROPULSION (4) --- (None) > --- UTILITY (2) ------ Huge Storage Unit Light Armor Plating > --- WEAPON (2) ------- Light Cannon Light Cannon > --- INVENTORY (25) --- Light Ion Engine Aluminum Leg Medium Storage Unit Large Storage Unit Improved Terrain Scanner Seismic Detector Light Armor Plating Light Armor Plating Light Armor Plating Light Armor Plating Hacking Suite Medium Laser Assault Rifle Light Assault Rifle Light Assault Rifle Light Cannon Grenade Launcher Mining Laser Peak State ------------ > --- POWER ------------ Light Ion Engine > --- PROPULSION ------- Light Treads Light Treads Light Treads Aluminum Leg > --- UTILITY ---------- Huge Storage Unit Light Armor Plating > --- WEAPON ----------- Light Cannon Light Cannon > --- INVENTORY -------- Light Ion Engine Aluminum Leg Medium Storage Unit Large Storage Unit Improved Terrain Scanner Seismic Detector Light Armor Plating Light Armor Plating Light Armor Plating Light Armor Plating Hacking Suite Medium Laser Assault Rifle Light Assault Rifle Light Assault Rifle Light Cannon Grenade Launcher Mining Laser [Rating: 11] Favorites ----------- Power Ion Engine Engine Ion Engine Propulsion Light Treads Treads Light Treads Leg Aluminum Leg Utility Huge Storage Unit Device Seismic Detector Storage Huge Storage Unit Protection Light Armor Plating Weapon Assault Rifle Energy Gun Medium Laser Ballistic Gun Assault Rifle Ballistic Cannon Light Cannon Launcher Grenade Launcher Build | -11 -10 -9 ------- Run | Yrd Mat Mat Slots Evolved 2 | . . 2 Power . | . . . Propulsion 2 | . . 2 Utility . | . . . Weapon . | . . . Parts Attached 19 | 7 10 2 Power 2 | 1 1 . Engine 2 | 1 1 . Core . | . . . Reactor . | . . . Propulsion 6 | 2 2 2 Treads 3 | . 2 1 Leg 3 | 2 . 1 Wheel . | . . . Hover . | . . . Flight . | . . . Utility 5 | 2 3 . Device 2 | 1 1 . Storage 2 | 1 1 . Processor . | . . . Hackware . | . . . Protection 1 | . 1 . Artifact . | . . . Weapon 6 | 2 4 . Energy Gun 2 | 1 1 . Energy Cannon . | . . . Ballistic Gun 1 | 1 . . Ballistic Cannon 2 | . 2 . Launcher 1 | . 1 . Special Weapon . | . . . Impact Weapon . | . . . Slashing Weapon . | . . . Piercing Weapon . | . . . Special Melee Weapon . | . . . Unidentified Prototypes . | . . . Parts Lost 6 | . 1 5 Power 2 | . 1 1 Propulsion 4 | . . 4 Utility . | . . . Weapon . | . . . Highest Loss Streak 5 | . 1 5 To Critical Strikes . | . . . Average Slot Usage (%) 98 | . 99 91 Engine 13 | . 14 9 Treads 21 | . 20 26 Leg 7 | . 7 10 Device 8 | . 10 . Storage 13 | . 14 11 Protection 4 | . 3 11 Energy Gun 9 | . 11 . Ballistic Gun 9 | . 11 . Ballistic Cannon 6 | . 3 22 Peak Build Rating 11 | 9 9 11 Average Rating 8 | 6 7 10 On Entrance 6 | . 9 9 Naked Turns . | . . . Heaviest Build 92 | 15 92 92 Greatest Support 60 | 20 40 60 Greatest Overweight (x) 4 | . 4 4 Average Overweight (x) 1 | . 1 1 Largest Inventory Capacity 25 | 8 25 25 Average Capacity 20 | 7 20 25 Most Carried 20 | 5 20 19 Average Carried 10 | 3 10 18 Final Capacity 25 | 8 25 25 Final Carried 20 | 5 20 18 Class Distribution -------------------- 100% | Mutant Dominant Class ---------------- Mutant | -10/Materials Mutant | -9/Materials Resources | -11 -10 -9 ----------- Run | Yrd Mat Mat Matter Collected 504 | 273 170 61 Remotely . | . . . Salvage Created 750 | 25 508 217 Parts 48 | 4 34 10 Haulers Intercepted 2 | . 1 1 Recyclers Shooed 1 | . 1 . Parts Field Recycled . | . . . Retrieved Matter . | . . . Parts Self-Destructed . | . . . Prevented . | . . . Kills | -11 -10 -9 ------- Run | Yrd Mat Mat Combat Hostiles Destroyed 20 | . 14 6 Guns 10 | . 10 . Cannons 6 | . . 6 AOE 4 | . 4 . Classes Destroyed 9 | 1 7 1 Worker 1 | . 1 . Builder 1 | . 1 . Tunneler 1 | 1 . . Hauler 2 | . 1 1 Operator 1 | . 1 . Watcher 3 | . 2 1 Swarmer 6 | . 6 . Grunt 13 | . 8 5 Sentry 1 | . . 1 Best Kill Streak 5 | 1 5 3 Combat Bots Only 5 | . 5 3 Max Kills in Single Turn 4 | 1 4 1 Gunslinging . | . . . Exploded 2 | . 2 . Melee . | . . . Uniques/NPCs Destroyed . | . . . Combat | -11 -10 -9 -------- Run | Yrd Mat Mat Hostile Shots Fired 138 | . 63 75 Missed 41 | . 19 22 Damage Taken 1313 | . 702 611 Core 336 | . 242 94 Absorbed by Shields . | . . . Core Remaining (%) 51 | 100 3 . Volleys Fired 94 | 1 65 28 Largest 2 | 2 2 2 Hottest 70 | 70 70 70 Shots Fired 184 | 2 126 56 Gun 121 | 2 119 . Cannon 62 | . 6 56 Launcher 1 | . 1 . Special . | . . . Kinetic 124 | 1 67 56 Thermal 59 | 1 58 . Explosive 1 | . 1 . Electromagnetic . | . . . Robot Hit Streak 16 | 1 16 10 Robot Miss Streak 7 | . 7 4 Penetration Max . | . . . Secondary Targets 1 | . 1 . Max Gunslinging Chain 1 | . 1 . Shots Hit Robots 106 | 1 75 30 Core Hits 42 | 1 32 9 Critical Kills . | . . . Critical Parts Destroyed . | . . . Critical Strikes 6 | . 4 2 Burn 4 | . 4 . Blast 2 | . . 2 Melee Attacks . | . . . Impact . | . . . Slashing . | . . . Piercing . | . . . Sneak Attacks . | . . . Combat Hostiles . | . . . Follow-up Attacks . | . . . Damage Inflicted 2215 | 13 1643 559 Guns 976 | 13 963 . Cannons 615 | . 56 559 Explosions 624 | . 624 . Melee . | . . . Ramming . | . . . Kinetic 1110 | . 551 559 Thermal 985 | 13 972 . Explosive 120 | . 120 . Electromagnetic . | . . . Impact . | . . . Slashing . | . . . Piercing . | . . . Highest Corruption . | . . . Average Corruption . | . . . Corruption Purged . | . . . Corruption Blocked . | . . . Overload Shots . | . . . Overflow Damage 292 | . 290 2 Projectiles 2 | . . 2 Explosions 290 | . 290 . Melee . | . . . Knockbacks 10 | . 2 8 Impact . | . . . Kinetic 9 | . 2 7 Secondary 1 | . . 1 Self-Inflicted Damage 172 | . 172 . Shots 3 | . 3 . Rammed . | . . . Targets Rammed . | . . . Kicked . | . . . Crushed . | . . . Highest Temperature 267 | 9 267 159 Average Temperature 69 | 6 72 64 Received Heat Transfer 615 | . 276 339 Effects 1 | . 1 . Energy Bleed 1 | . 1 . Siege Activations . | . . . Robots Corrupted . | . . . Combat Hostiles . | . . . Parts Fried . | . . . Impact Corruptions . | . . . Robots Melted . | . . . Combat Hostiles . | . . . Parts Melted . | . . . Heat Transferred 2002 | 37 1965 . Parts Sabotaged . | . . . Parts Stolen . | . . . Parts Stripped . | . . . Power Chain Reactions . | . . . Alert | -11 -10 -9 ------- Run | Yrd Mat Mat Peak Influence 362 | 5 362 249 Initial 95 | . 3 95 Average 184 | 2 202 169 Maximum Alert Level 1 | . 1 1 Low Security (%) 49 | 100 45 52 Level 1 50 | . 54 47 Level 2 . | . . . Level 3 . | . . . Level 4 . | . . . Level 5 . | . . . High Security . | . . . Max Security . | . . . Squads Dispatched 2 | . 1 1 Investigation 1 | . 1 . Extermination . | . . . Reinforcement 1 | . . 1 Assault . | . . . Garrison . | . . . Intercept . | . . . Searches Triggered . | . . . Construction Impeded . | . . . Haulers Reinforced . | . . . Active Scanning Responses . | . . . Cargo Convoy Interrupts . | . . . Stealth | -11 -10 -9 --------- Run | Yrd Mat Mat Distress Signals 3 | . . 3 Communications Jammed . | . . . Distress Signals . | . . . Times Spotted 35 | . 23 12 Peak Tracking Total 5 | . 4 5 Tactical Retreats . | . . . Traps | -11 -10 -9 ------- Run | Yrd Mat Mat Traps Triggered . | . . . Indirectly . | . . . Trap Hack Attempts . | . . . Triggered . | . . . Disarmed . | . . . Reprogrammed . | . . . Reused . | . . . Traps Extracted . | . . . Installed . | . . . Triggered . | . . . Machines | -11 -10 -9 ---------- Run | Yrd Mat Mat Machines Disabled 10 | . 7 3 Max in Single Turn 6 | . 6 1 Machines Repaired . | . . . Machines Dismantled . | . . . Machines Sabotaged . | . . . Overloaded Fab Kills . | . . . Hacking | -11 -10 -9 --------- Run | Yrd Mat Mat Machines Accessed 7 | . 5 2 Terminals 7 | . 5 2 Fabricators . | . . . Repair Stations . | . . . Recycling Units . | . . . Scanalyzers . | . . . Garrison Access . | . . . Total Hacks 21 | . 17 4 Successful 8 | . 8 . Failed 12 | . 8 4 Catastrophic 2 | . 1 1 Database Lockouts 1 | . 1 . Manual 16 | . 16 . Terminals 21 | . 17 4 Fabricators . | . . . Repair Stations . | . . . Recycling Units . | . . . Scanalyzers . | . . . Garrison Access . | . . . Terminal Hacks 5 | . 5 . Robot Analysis 3 | . 3 . Branch Access Points 1 | . 1 . Registered Components 1 | . 1 . Fabricator Hacks . | . . . Repair Station Hacks . | . . . Recycling Unit Hacks . | . . . Scanalyzer . | . . . Garrison Access Hacks . | . . . Unauthorized Hacks 3 | . 3 . Terminals 3 | . 3 . Assimilate 1 | . 1 . Botnet 2 | . 2 . Fabricators . | . . . Repair Stations . | . . . Recycling Units . | . . . Scanalyzers . | . . . Garrison Access . | . . . Data Cores Recovered . | . . . Used . | . . . Hacking Detections 7 | . 5 2 Full Trace Events 2 | . 2 . Feedback Events . | . . . Feedback Blocked . | . . . Robot Schematics Acquired . | . . . Robots Built . | . . . Authchips . | . . . Time . | . . . Total Robot Build Rating . | . . . Part Schematics Acquired . | . . . Parts Built . | . . . Authchips . | . . . Time . | . . . Total Part Build Rating . | . . . Parts Repaired . | . . . Time . | . . . Parts Recycled . | . . . Recycled Matter . | . . . Retrieved Matter . | . . . Retrieved Components . | . . . Parts Scanalyzed . | . . . Part Schematics Acquired . | . . . Parts Damaged . | . . . Bothacking | -11 -10 -9 ------------ Run | Yrd Mat Mat Used RIF Installer . | . . . Robots Hacked . | . . . Non-combat . | . . . Combat . | . . . Robot Hacks Applied . | . . . Relay Couplers Released . | . . . Fabnet Peak Effective % . | . . . Robots Rewired . | . . . Allies Hacked . | . . . Hacks Repelled . | . . . Allies | -11 -10 -9 -------- Run | Yrd Mat Mat Total Allies 1 | . 1 . Largest Group 1 | . 1 . Highest-Rated Group 10 | . 10 . Highest-Rated Ally 10 | . 10 . Total Orders . | . . . Ally Attacks . | . . . Total Damage . | . . . Kills . | . . . Allies Corrupted . | . . . Allies Melted . | . . . Intel | -11 -10 -9 ------- Run | Yrd Mat Mat Robot Analysis Total 3 | . 3 . Derelict Logs Recovered . | . . . Drone Launches . | . . . Drone Recoveries . | . . . Exploration | -11 -10 -9 ------------- Run | Yrd Mat Mat Turns Passed 1173 | 77 920 176 Spaces Moved 378 | 51 293 34 Core 5 | 4 1 . Treads 202 | . 168 34 Legs 171 | 47 124 . Wheels . | . . . Hover . | . . . Flight . | . . . Fastest Speed 50 | 50 120 240 Average Speed 220 | 114 233 263 Slowest Speed 480 | 120 320 480 Overloaded Moves . | . . . Propulsion Burnouts . | . . . Robots Hopped . | . . . Cave-ins Triggered . | . . . Exploration Rate (%) 23 | 4 58 7 Regions Visited 2 Branch Regions . Pre-discovered Areas . | . . . Known Exits Taken . | . . . Unknown Exits Taken 2 | 1 1 . Scrap Searched . | . . . Spaces Dug . | . . . Terrain Destroyed 50 | . 50 . Melee . | . . . Projectile . | . . . AOE 50 | . 50 . Terrain Rammed . | . . . Walls Destroyed . | . . . Machines Disabled . | . . . Actions | -11 -10 -9 --------- Run | Yrd Mat Mat Total 533 | 64 405 64 Wait 14 | 1 13 . Move 376 | 50 292 34 Hop . | . . . Pick Up 21 | 5 16 . Fast Attach 11 | 7 4 . Attach 3 | . 1 2 Detach 4 | . 4 . Swap 5 | . 5 . Drop 5 | . 5 . Fire 94 | 1 65 28 Melee . | . . . Ram . | . . . Kick . | . . . Crush . | . . . Escape Stasis . | . . . Rewire . | . . . Trap . | . . . Miscellaneous . | . . . Route ------- -11/Scrapyard -10/Materials (discovered 4 exits: *Mat x2 / Min x2) -9/Materials History --------- Turn | Location | Event 13 | -11/Scrapyard | Discovered new exit (range 15) 78 | -11/Scrapyard | Entered Materials 196 | -10/Materials | Identified exit to Mines 319 | -10/Materials | Discovered new exit (range 16) 344 | -10/Materials | Build established: Mutant 544 | -10/Materials | Central database locked down 669 | -10/Materials | Core integrity fell below 50% 669 | -10/Materials | Core integrity fell below 20% 947 | -10/Materials | Discovered new exit (range 16) 998 | -10/Materials | Entered another Materials area 998 | -9/Materials | Evolved 2 slots: Propulsion x2 1174 | -9/Materials | Self-destructed Last Messages --------------- 01136_ K-01 Serf collects debris. 01137_ G-34 Mercenary knocked back. 01140_ K-01 Serf collects debris. 01142_ W-16 Scout sends out distress signal. 01143_ K-01 Serf collects debris. 01147_ Lgt. Treads destroyed. 01148_ K-01 Serf collects debris. 01149_ Lgt. Ion Engine destroyed. 01149_ Acquired 4 matter. 01151_ K-01 Serf collects debris. 01151_ K-01 Serf destroyed. 01154_ Acquired 15 matter. 01159_ G-34 Mercenary Ion Engine blasted off. 01159_ G-34 Mercenary knocked back. 01162_ Terminal disabled. 01165_ G-34 Mercenary knocked back. 01165_ Aluminum Leg destroyed. 01167_ Lgt. Treads destroyed. 01168_ G-34 Mercenary destroyed. 01172_ R-06 Scavenger collects Heat Sink. Map ----- +----------------------------------------------------+ | ?????????????????????????????????????????????????? | | ?????????????????????????????????????????????????? | | ?????????????????????????????????????????????????? | | ?????????????????????????????????????????????????? | | ?????????????????????????????????????????????????? | | ?????????????????????????????????????????????????? | | ?????????????????????????????????????????????????? | | ?????????????????????????????????????????????????? | | ?????????????????????????????????????????????????? | | ?????????????????????????????????????????????????? | | ?????????????????????????????????????????????????? | | ?????????????????????????????????????????????????? | | ?????????????????????????????????????????????????? | | ?????????????????????????????????????????????????? | | ?????????????????????????????????????????????????? | | ?????????????????????????????????????????????????? | | ?????????????????????????????????????????????????? | | ?????????????????????????????????????????????????? | | ?????????????????????????????????????????????????? | | ?????????????????????????????????????#???????????? | | ???????????????????????????????????? #???????????? | | ??????????????????????????????????? #???????????? | | ?????????????########+############ ########????? | | ????????????# !! %%% * =%r ??? | | ????????????# !! [% ==g% ??? | | ????????????# ! %""" @! = u%% ###?????????? | | ????????????# """ % #### #???????????? | | ????????????# """" * %""#?? #???????????? | | ????????????# T"#??? #???????????? | | ????????????# % %""#????????????????? | | ??????????? % !###????????????????? | | ??????????? % ^ ##?????????????????? | | ??????????"" """" % T #?????????????????? | | ??????????"" """"% a T#?????????????????? | | ????????"""" """" "#?????????????????? | | ???????? ##?????????????????? | | ??????? #??????????????????? | | ???????? #??????????????????? | | ????????????# #??????????????????? | | ????????????# #??????????????????? | | ????????????######## ########??????????????????? | | ???????????????????# #?????????????????????????? | | ???????????????????# ####??????????????????????? | | ???????????????????# !##?????????????????????? | | ???????????????????# !#?????????????????????? | | ???????????????????# !#?????????????????????? | | ???????????????????# !#?????????????????????? | | ???????????????????# !#?????????????????????? | | ???????????????????# !##?????????????????????? | | ???????????????????# ####??????????????????????? | +----------------------------------------------------+ Best States ------------- Heat Dissipation 28 Energy Generation 10 Energy Capacity 250 Matter Stores 300 Matter Capacity 300 Sight Range 16 Terrain Scan Range 16 Terrain Scan Density 10 Armor Coverage 150 Evasion (%) 55 Recoil Reduction 3 Item Schematics ----------------- None Robot Schematics ------------------ None Fabricated ------------ Nothing Alien Tech Used ----------------- None Achievements -------------- None Challenges ------------ None Game ------ Seed FluxBladeShifter Manual? 0 Play Time 00:21:01 Cumulative 94.0 hours Start 2024.08.08 @ 01:36:22 End 2024.08.08 @ 03:35:12 Sessions 1 Manual Loads 0 Difficulty Rogue Special Mode None Game No. 28 Rogue 28 Adventurer 0 Explorer 0 Win Type - Total 1 Types 1/0/0/0/0/0/0/0/0 Lore% 26 Gallery% 49 Achievement% 42 Wizard Run 0 Options --------- Layout 0 ASCII 0 Keyboard 1 Movement Arrows Keybinds 0 Fullscreen 2 Font 36/Terminus++ Map View 76x50 Zoom Use 0% Tactical HUD 1 Map Filters NONE Filters NONE Steam 1 RUN: 777e3f36-35f0-42c3-a8a0-86421ccfb5a2